fUSD/lending_fUSD_20251126
["ID","MTS","AMOUNT","RATE_DAILY","PERIOD"]
[394940337,1764177040356,-500.0,0.00020173,2]
[394940338,1764177040365,-500.0,0.00020173,2]
[394940339,1764177040374,-186.88026511,0.00020173,2]
[394940340,1764177040383,-200.6,0.00020374,2]
[394940341,1764177040392,-1963.10084283,0.00020574,2]
[394940342,1764177040402,-2900.17228948,0.00020574,2]
[394940343,1764177040411,-425.98,0.0002068,2]
[394940344,1764177040420,-501.77499518,0.00020721,2]
[394940345,1764177040429,-184.46787,0.0002082,2]
[394940346,1764177040439,-500.0,0.00020973,2]
[394940347,1764177040447,-150.84371571,0.00021337,2]
[394940348,1764177040457,-164.63140872,0.00021338,2]
[394940349,1764177040466,-200.6,0.00021446,2]
[394940350,1764177040475,-1000.0,0.000215,2]
[394940351,1764177040484,-1000.0,0.000215,2]
[394940352,1764177040494,-184.46787,0.0002182,2]
[394940353,1764177040503,-200.6,0.00022518,2]
[394940354,1764177040512,-425.98,0.00022749,2]
[394940355,1764177040521,-184.46787,0.0002282,2]
[394940356,1764177040530,-1963.10084283,0.00023248,2]
[394940357,1764177040539,-2900.17228948,0.00023248,2]
[394940358,1764177040548,-200.6,0.00023591,2]
[394940359,1764177040557,-2500.0,0.00024159,3]
[394940360,1764177040567,-2500.0,0.00024159,3]
[394940361,1764177040576,-448.5,0.00024353,2]
[394940362,1764177040585,-200.6,0.00024663,2]
[394940363,1764177040594,-150.84371571,0.00024774,2]
[394940364,1764177040603,-164.63140872,0.00024775,2]
[394940365,1764177040612,-200.0,0.00024817,2]
[394940366,1764177040621,-24778.6537074,0.000249,3]
[394940367,1764177040630,-151.0,0.00025,7]
[394940368,1764177040639,-200.0,0.00025065,2]
[394940369,1764177040648,-200.0,0.00025316,2]
[394940370,1764177040657,-200.0,0.00025569,2]
[394940371,1764177040666,-200.6,0.00025735,2]
[394940372,1764177040675,-151.0,0.000258,2]
[394940373,1764177040684,-200.0,0.00025825,2]
[394940374,1764177040693,-181.01245885,0.00025919,2]
[394940375,1764177040703,-1963.10084283,0.00025921,2]
[394940376,1764177040712,-2900.17228948,0.00025921,2]
[394940377,1764177040721,-1651.91024716,0.00026043,3]
[394940378,1764177040730,-5000.0,0.00026053,2]
[394940379,1764177040739,-200.6,0.00026808,2]
[394940380,1764177040748,-7906.80870902,0.00026929,2]
[394940381,1764177040757,-152.5,0.00027397,2]
[394940382,1764177040766,-166.66,0.0002766,30]
[394940383,1764177040775,-200.6,0.0002788,2]
[394940384,1764177040784,-500.0,0.00027996,5]
[394940385,1764177040793,-151.0,0.00028,2]
[394940386,1764177040802,-150.84371571,0.00028211,2]
[394940387,1764177040811,-164.63140872,0.00028213,2]
[394940388,1764177040824,-166.66,0.00028242,30]
[394940389,1764177040834,-1963.10084283,0.00028595,2]
[394940390,1764177040845,-2900.17228948,0.00028595,2]
[394940391,1764177040855,-160.78,0.000286,5]
[394940392,1764177040869,-5522.0,0.000288,5]
[394940393,1764177040879,-166.66,0.00028824,30]
[394940394,1764177040887,-200.6,0.00028952,2]
[394940395,1764177040897,-166.66,0.00029406,30]
[394940396,1764177040912,-955.32170794,0.00029932,2]
[394940397,1764177040922,-166.66,0.00029989,30]
[394940398,1764177040931,-1651.91024716,0.0002999,3]
[394940399,1764177040942,-2742.0,0.0003,5]
[394940400,1764177040951,-151.0,0.0003,5]
[394940401,1764177040960,-200.6,0.00030025,2]
[394940402,1764177040970,-1000.0,0.00030028,2]
[394940403,1764177040980,-500.0,0.00030278,120]
[394940404,1764177040989,-500.0,0.00030278,120]
[394940405,1764177040998,-166.66,0.00030571,30]
[394940406,1764177041009,-919.827,0.00030852,2]
[394940407,1764177041018,-6502.0,0.00030852,2]
[394940408,1764177041031,-2716.0,0.00030852,2]
[394940409,1764177041041,-252.0,0.00030852,2]
[394940410,1764177041050,-561.0,0.00030852,2]
[394940411,1764177041059,-200.6,0.00031097,2]
[394940412,1764177041070,-1963.10084283,0.00031269,2]
[394940413,1764177041079,-2900.17228948,0.00031269,2]
[394940414,1764177041088,-150.84371571,0.00031647,2]
[394940415,1764177041098,-164.63140872,0.00031651,15]
[394940416,1764177041107,-5703.35,0.00031855,2]
[394940417,1764177041117,-151.9,0.000319,7]
[394940418,1764177041126,-200.6,0.00032169,2]
[394940419,1764177041136,-1233.64,0.000322,2]
[394940420,1764177041147,-1651.91024716,0.00032279,3]
[394940421,1764177041156,-1000.0,0.00032289,2]
[394940422,1764177041166,-162.11,0.0003281,2]
[394940423,1764177041175,-200.6,0.00033241,2]
[394940424,1764177041185,-150.0,0.00033478,2]
[394940425,1764177041360,-168.84469095,0.00033511,5]
[394940426,1764177041373,-151.0,0.00033608,14]
[394940427,1764177041382,-1320.0,0.00033611,2]
[394940428,1764177041391,-1624.103,0.00033611,2]
[394940429,1764177041400,-3439.0,0.00033611,2]
[394940430,1764177041410,-843.0,0.00033611,2]
[394940431,1764177041419,-1256.0,0.00033611,2]
[394940432,1764177041428,-659.0,0.00033611,2]
[394940433,1764177041437,-6497.0,0.00033852,2]
[394940434,1764177041446,-2716.0,0.00033852,2]
[394940435,1764177041456,-252.0,0.00033852,2]
[394940436,1764177041466,-561.0,0.00033852,2]
[394940437,1764177041475,-1651.91024716,0.00033933,3]
[394940438,1764177041485,-181.01245885,0.00033939,2]
[394940439,1764177041497,-1963.10084283,0.00033943,2]
[394940440,1764177041507,-2900.17228948,0.00033943,2]
[394940441,1764177041518,-595.14574691,0.00034,2]
[394940442,1764177041527,-200.6,0.00034314,2]
[394940443,1764177041536,-163.939,0.00034493,39]
[394940444,1764177041546,-717.778,0.00034493,39]
[394940445,1764177041555,-1651.91024716,0.00034745,3]
[394940446,1764177041566,-23195.28644288,0.00034755,2]
[394940447,1764177041578,-151.0,0.00035,14]
[394940448,1764177041587,-150.84371571,0.00035084,2]
[394940449,1764177041596,-164.63140872,0.00035089,15]
[394940450,1764177041606,-151.9,0.000351,14]
[394940451,1764177041615,-6904.12823386,0.00035334,30]
[394940452,1764177041624,-200.6,0.00035386,2]
[394940453,1764177041633,-168.84469094,0.00035624,8]
[394940454,1764177041643,-293.84769048,0.0003589,7]
[394940455,1764177041652,-1651.91024716,0.00036127,3]
[394940456,1764177041661,-620.0,0.00036137,2]
[394940457,1764177041671,-500.0,0.00036137,2]
[394940458,1764177041680,-500.0,0.00036137,2]
[394940459,1764177041690,-475.70981304,0.00036137,2]
[394940460,1764177041699,-500.0,0.00036137,2]
[394940461,1764177041709,-500.0,0.00036137,2]
[394940462,1764177041718,-500.0,0.00036137,2]
[394940463,1764177041727,-500.0,0.00036137,2]
[394940464,1764177041736,-500.0,0.00036137,2]
[394940465,1764177041745,-500.0,0.00036137,2]
[394940466,1764177041754,-500.0,0.00036137,2]
[394940467,1764177041763,-500.0,0.00036137,2]
[394940468,1764177041772,-500.0,0.00036137,2]
[394940469,1764177041781,-500.0,0.00036137,2]
[394940470,1764177041791,-500.0,0.00036137,2]
[394940471,1764177041800,-500.0,0.00036137,2]
[394940472,1764177041809,-500.0,0.00036137,2]
[394940473,1764177041818,-500.0,0.00036137,2]
[394940474,1764177041828,-500.0,0.00036137,2]
[394940475,1764177041837,-500.0,0.00036137,2]
[394940476,1764177041847,-500.0,0.00036137,2]
[394940477,1764177041856,-500.0,0.00036137,2]
[394940478,1764177041871,-500.0,0.00036137,2]
[394940479,1764177041880,-500.0,0.00036137,2]
[394940480,1764177041890,-500.0,0.00036137,2]
[394940481,1764177041899,-500.0,0.00036137,2]
[394940482,1764177041910,-532.64403687,0.00036137,2]
[394940483,1764177041920,-1085.86,0.00036137,14]
[394940484,1764177041929,-1000.0,0.00036325,2]
[394940485,1764177041941,-1085.86,0.00036411,14]
[394940486,1764177041951,-200.6,0.00036458,2]
[394940487,1764177041960,-2627.975,0.00036611,2]
[394940488,1764177041976,-1963.10084283,0.00036616,2]
[394940489,1764177041991,-2900.17228948,0.00036616,2]
[394940490,1764177042001,-620.0,0.00036685,2]
[394940491,1764177042011,-1085.86,0.00036685,14]
[394940492,1764177042020,-2250.584,0.00036852,2]
[394940493,1764177042030,-1085.86,0.00036959,14]
[394940494,1764177042040,-2732.42426895,0.00037017,2]
[394940495,1764177042050,-1085.86,0.00037233,14]
[394940496,1764177042059,-1085.86,0.00037507,14]
[394940497,1764177042070,-200.6,0.00037531,2]
[394940498,1764177042079,-168.84469094,0.00037738,11]
[394940499,1764177042089,-1085.86,0.00037781,14]
[394940500,1764177042098,-150.0,0.00037849,7]
[394940501,1764177042108,-150.0,0.00037849,7]
[394940502,1764177042117,-150.0,0.00037849,7]
[394940503,1764177042127,-150.0,0.00037849,7]
[394940504,1764177042137,-150.0,0.00037849,7]
[394940505,1764177042146,-150.0,0.00037849,7]
[394940506,1764177042155,-500.0,0.00037866,30]
[394940507,1764177042165,-518.62507584,0.00037866,30]
[394940508,1764177042176,-1085.88,0.00038055,14]
[394940509,1764177042186,-162.11,0.00038226,2]
[394940510,1764177042195,-500.0,0.00038356,7]
[394940511,1764177042205,-154.72,0.00038356,30]
[394940512,1764177042215,-608.21605454,0.00038454,2]
[394940513,1764177042225,-151.0,0.000385,14]
[394940514,1764177042234,-1651.91024716,0.00038516,4]
[394940515,1764177042243,-150.84371571,0.00038521,2]
[394940516,1764177042252,-164.63140872,0.00038526,15]
[394940517,1764177042262,-200.6,0.00038603,2]
[394940518,1764177042271,-927.0,0.00038986,7]
[394940519,1764177042282,-927.0,0.00039096,7]
[394940520,1764177042291,-1359.10483021,0.00039185,10]
[394940521,1764177042300,-1963.10084283,0.0003929,2]
[394940522,1764177042311,-2900.17228948,0.0003929,2]
[394940523,1764177042320,-927.0,0.00039307,2]
[394940524,1764177042330,-927.0,0.00039317,7]
[394940525,1764177042339,-2735.91105092,0.00039513,2]
[394940526,1764177042348,-200.6,0.00039675,2]
[394940527,1764177042359,-513.28295249,0.00039842,2]
[394940528,1764177042369,-168.84469094,0.00039851,13]
[394940529,1764177042380,-927.0,0.00039868,2]
[394940530,1764177042390,-150.0,0.00039952,7]
[394940531,1764177042400,-927.0,0.00039957,2]
[394940532,1764177042410,-451.75,0.0004,5]
[394940533,1764177042420,-168.0,0.00040191,2]
[394940534,1764177042429,-513.28295247,0.00040195,2]
[394940536,1764177042439,-1000.0,0.00040361,2]
[394940538,1764177042448,-453.1,0.00040411,2]
[394940539,1764177042458,-927.0,0.00040478,2]
[394940540,1764177042468,-513.28295247,0.00040547,2]
[394940541,1764177042477,-927.0,0.00040597,120]
[394940542,1764177042487,-200.6,0.00040748,2]
[394940544,1764177042497,-927.0,0.00040842,7]
[394940545,1764177042506,-1651.91024716,0.0004089,4]
[394940546,1764177042515,-513.28295247,0.000409,2]
[394940548,1764177042525,-927.0,0.00041025,120]
[394940550,1764177042534,-600.0,0.00041096,120]
[394940552,1764177042544,-159.54,0.00041096,2]
[394940554,1764177042554,-152.5,0.00041096,2]
[394940556,1764177042563,-1501.34,0.00041096,2]
[394940558,1764177042572,-489.38,0.00041096,2]
[394940560,1764177042582,-927.0,0.00041206,2]
[394940561,1764177042591,-513.28295247,0.00041253,2]
[394940562,1764177042600,-600.0,0.0004137,120]
[394940563,1764177042610,-927.0,0.00041408,2]
[394940564,1764177042620,-513.28295247,0.00041605,4]
[394940565,1764177042629,-600.0,0.00041644,120]
[394940566,1764177042638,-927.0,0.00041757,2]
[394940567,1764177042648,-1651.91024716,0.00041825,4]
[394940568,1764177042658,-927.0,0.00041836,120]
[394940569,1764177042669,-600.0,0.00041918,120]
[394940570,1764177042678,-168.0,0.0004194,2]
[394940571,1764177042688,-1651.91024716,0.00041954,4]
[394940572,1764177042697,-425.5347,0.00041958,2]
[394940573,1764177042707,-163.19318955,0.00041958,28]
[394940574,1764177042717,-150.84371571,0.00041958,28]
[394940575,1764177042727,-181.01245885,0.00041958,28]
[394940576,1764177042736,-513.28295247,0.00041958,5]
[394940577,1764177042745,-168.84469094,0.00041964,16]
[394940578,1764177042754,-1963.10084283,0.00041964,15]
[394940579,1764177042764,-164.63140872,0.00041964,15]
[394940580,1764177042773,-2900.17228948,0.00041964,15]
[394940581,1764177042782,-955.32170794,0.00041964,18]
[394940582,1764177042792,-22414.02386026,0.00041964,2]
[394940583,1764177042801,-1603.5762585,0.00041964,2]
[394940584,1764177042811,-221.89745659,0.00041964,2]
[394940585,1764177042820,-168.0,0.0004199,2]
[394940586,1764177042830,-1495.3597744,0.00042,120]
[394940587,1764177042839,-927.0,0.00042016,2]
[394940588,1764177042848,-1651.91024716,0.00042017,4]
[394940589,1764177042858,-6067.0,0.00042027,120]
[394940590,1764177042870,-335.14178197,0.00042029,7]
[394940591,1764177042880,-150.0,0.00042039,7]
[394940592,1764177042889,-150.0,0.00042039,7]
[394940593,1764177042898,-150.0,0.00042039,7]
[394940594,1764177042909,-150.56621767,0.00042039,7]
[394940595,1764177042918,-500.0,0.00042039,7]
[394940596,1764177042928,-152.56517482,0.00042039,7]
[394940597,1764177042938,-150.0,0.00042039,7]
[394940598,1764177042947,-150.0,0.00042039,2]
[394940599,1764177042957,-150.0,0.00042039,7]
[394940600,1764177042966,-150.0,0.00042039,7]
[394940601,1764177042975,-150.0,0.00042039,7]
[394940602,1764177042985,-152.48174013,0.00042039,7]
[394940603,1764177042994,-500.0,0.00042039,7]
[394940604,1764177043004,-150.0,0.00042039,7]
[394940605,1764177043013,-150.0,0.00042039,7]
[394940606,1764177043022,-150.67648058,0.00042039,7]
[394940607,1764177043031,-500.0,0.00042039,120]
[394940608,1764177043041,-150.0,0.00042039,7]
[394940609,1764177043051,-150.0,0.00042039,7]
[394940610,1764177043060,-150.0,0.00042039,7]
[394940611,1764177043070,-150.0,0.00042039,7]
[394940612,1764177043080,-150.0,0.00042039,7]
[394940613,1764177043090,-150.0,0.00042039,2]
[394940614,1764177043099,-150.0,0.00042039,7]
[394940615,1764177043109,-150.0,0.00042039,7]
[394940616,1764177043118,-150.0,0.00042039,2]
[394940617,1764177043128,-208.32314397,0.00042039,7]
[394940618,1764177043139,-150.0,0.00042039,7]
[394940619,1764177043150,-150.0,0.00042039,7]
[394940620,1764177043165,-1651.91024716,0.00042054,4]
[394940621,1764177043175,-335.14178197,0.00042054,7]
[394940622,1764177043186,-335.14178197,0.00042054,7]
[394940623,1764177043196,-150.0,0.00042055,30]
[394940624,1764177043205,-150.0,0.00042055,30]
[394940625,1764177043214,-150.0,0.00042055,30]
[394940626,1764177043224,-246.54497025,0.00042055,30]
[394940628,1764177043234,-150.0,0.00042055,30]
[394940630,1764177043244,-500.0,0.00042057,120]
[394940632,1764177043253,-500.0,0.00042057,120]
[394940634,1764177043262,-500.0,0.00042057,120]
[394940635,1764177043272,-500.0,0.00042057,120]
[394940636,1764177043281,-500.0,0.00042057,120]
[394940637,1764177043291,-439.74156925,0.00042057,120]
[394940638,1764177043302,-500.0,0.00042057,120]
[394940639,1764177043311,-500.0,0.00042057,120]
[394940640,1764177043322,-331.0821075,0.00042057,120]
[394940641,1764177043331,-158.751321,0.00042058,120]
[394940642,1764177043341,-151.0,0.00042058,30]
[394940643,1764177043351,-214.71480823,0.00042058,30]
[394940644,1764177043361,-1857.89392018,0.0004206,30]
[394940645,1764177043371,-151.0,0.00042061,14]
[394940646,1764177043380,-151.516583,0.00042064,120]
[394940647,1764177043389,-168.341356,0.00042064,120]
[394940648,1764177043398,-151.0,0.00042064,120]
[394940649,1764177043408,-230.811507,0.00042064,120]
[394940650,1764177043418,-151.0,0.00042064,30]
[394940651,1764177043427,-241.623116,0.00042064,120]
[394940652,1764177043436,-151.0,0.00042064,30]
[394940653,1764177043445,-151.0,0.00042064,30]
[394940654,1764177043455,-151.0,0.00042064,30]
[394940655,1764177043464,-151.0,0.00042064,30]
[394940656,1764177043475,-151.0,0.00042064,30]
[394940657,1764177043484,-151.0,0.00042064,30]
[394940658,1764177043495,-218.179962,0.00042064,30]
[394940659,1764177043504,-176.870843,0.00042064,120]
[394940660,1764177043516,-151.0,0.00042064,120]
[394940661,1764177043525,-151.0,0.00042064,120]
[394940662,1764177043535,-151.0,0.00042064,120]
[394940663,1764177043545,-151.0,0.00042064,120]
[394940664,1764177043555,-151.0,0.00042064,120]
[394940665,1764177043564,-151.0,0.00042064,120]
[394940666,1764177043574,-151.0,0.00042064,120]
[394940667,1764177043584,-219.729764,0.00042064,120]
[394940668,1764177043596,-151.932284,0.00042064,120]
[394940669,1764177043606,-151.0,0.00042064,120]
[394940670,1764177043616,-151.0,0.00042064,120]
[394940671,1764177043626,-151.0,0.00042064,120]
[394940672,1764177043637,-151.0,0.00042064,120]
[394940673,1764177043647,-151.0,0.00042064,120]
[394940674,1764177043656,-151.0,0.00042064,120]
[394940675,1764177043666,-165.062012,0.00042064,120]
[394940676,1764177043676,-151.0,0.00042064,120]
[394940677,1764177043685,-151.0,0.00042064,120]
[394940678,1764177043695,-151.0,0.00042064,120]
[394940679,1764177043704,-244.173329,0.00042064,120]
[394940680,1764177043713,-151.0,0.00042064,120]
[394940681,1764177043723,-197.794927,0.00042064,120]
[394940682,1764177043732,-151.0,0.00042064,120]
[394940683,1764177043741,-163.378609,0.00042064,120]
[394940684,1764177043750,-151.0,0.00042064,120]
[394940685,1764177043759,-151.0,0.00042064,120]
[394940686,1764177043768,-188.618534,0.00042064,120]
[394940687,1764177043777,-162.576589,0.00042064,120]
[394940688,1764177043787,-151.000003,0.00042064,120]
[394940689,1764177043796,-151.0,0.00042064,120]
[394940690,1764177043805,-151.0,0.00042064,120]
[394940691,1764177043814,-151.0,0.00042064,120]
[394940692,1764177043824,-151.0,0.00042064,120]
[394940693,1764177043833,-151.0,0.00042064,120]
[394940694,1764177043842,-151.0,0.00042064,120]
[394940695,1764177043851,-151.0,0.00042064,120]
[394940696,1764177043864,-151.0,0.00042064,120]
[394940697,1764177043877,-275.690878,0.00042064,120]
[394940698,1764177043887,-450973.26184336,0.00042064,7]
[394940699,1764177043980,-53852.71226335,0.00042064,7]
[394940700,1764177043992,-1316.674244,0.00042064,7]
[394940701,1764177044004,-506.77396754,0.00042064,7]
[394940702,1764177044016,-2360.94038,0.00042064,7]
[394940703,1764177044028,-88120.38899997,0.00042064,7]
[394940704,1764177044042,-386.49005528,0.00042064,7]
[394940705,1764177044077,-2732.7300008,0.00042064,7]
[394940706,1764177044089,-2236.13395979,0.00042064,7]
[394940707,1764177044101,-1317.93744115,0.00042064,7]
[394940708,1764177044272,-2347.840729,0.00017999,2]
[394940709,1764177044282,-3563.884871,0.00042064,7]
[394940710,1764177044294,-1001.9863755,0.00042064,7]
[394940711,1764177044305,-879359.99999995,0.00042064,7]
[394940712,1764177044317,-39121.27423898,0.00042064,7]
[394940713,1764177044329,-716000.0,0.00042064,7]
[394940714,1764177044340,-21052.2296375,0.00042064,7]
[394940730,1764177045751,-1258.98994496,0.000179,2]
[394940731,1764177045761,-572855.67885582,0.00042064,7]
[394940732,1764177045802,-508.70938796,0.00042064,7]
[394940733,1764177045814,-437.63500005,0.00042064,7]
[394940753,1764178057436,-1500.0,0.000162,5]
[394940754,1764178058221,-1500.0,0.000162,5]
[394940755,1764178059043,-1500.0,0.000162,5]
[394940756,1764178063002,-500.0,0.000162,5]
[394940757,1764178063617,-500.0,0.000162,5]
[394940758,1764178064188,-500.0,0.000162,5]
[394940759,1764178138280,152.5,0.00013699,2]
[394940783,1764178231774,-300.0,0.00016199,2]
[394940786,1764178231783,-300.0,0.00016199,2]
[394940789,1764178231793,-1028.87699574,0.00016199,2]
[394940793,1764178231804,-171.12300426,0.00016199,2]
[394940795,1764178231813,-6034.44784622,0.000162,5]
[394940797,1764178231824,-22089.32458766,0.000162,5]
[394940799,1764178231835,-250.0,0.000166,2]
[394940801,1764178231844,-500.0,0.00016973,2]
[394940803,1764178231853,-500.0,0.00016973,2]
[394940805,1764178231862,-500.0,0.00016973,2]
[394940807,1764178231871,-205.30624743,0.00016999,2]
[394940809,1764178231880,-500.0,0.00016999,2]
[394940811,1764178231889,-500.0,0.00016999,2]
[394940813,1764178231898,-500.0,0.00016999,2]
[394940815,1764178231908,-500.0,0.00016999,2]
[394940817,1764178231919,-500.0,0.00016999,2]
[394940819,1764178231927,-500.0,0.00016999,2]
[394940821,1764178231937,-500.0,0.00016999,2]
[394940823,1764178231946,-439.07259879,0.00016999,2]
[394940825,1764178231955,-8107.75076711,0.00017,2]
[394940827,1764178231967,-4450.6515762,0.00017,2]
[394940829,1764178231977,-1323.05998382,0.00017,2]
[394940850,1764178237757,-886.49,0.00017,2]
[394940851,1764178237769,-1819.95224896,0.00017,2]
[394940852,1764178237780,-18090.39901253,0.00017,2]
[394940853,1764178237918,-1262.30410579,0.00017,2]
[394940854,1764178237930,-2639.869435,0.00017,2]
[394940855,1764178237941,-4263.37607071,0.00017,2]
[394940856,1764178237984,-2751.48466724,0.00017,2]
[394940857,1764178237995,-853.51618857,0.00017,2]
[394940858,1764178238043,-1753.18932436,0.00017,2]
[394940859,1764178238055,-447.67639269,0.00017,2]
[394941043,1764178239880,-4024.0199998,0.00017,2]
[394941049,1764178239926,-1495.78179057,0.00017,2]
[394941051,1764178239937,-777.12919889,0.00017,2]
[394941053,1764178239949,-251.96840169,0.00017,2]
[394941055,1764178239960,-326.11205885,0.00017,2]
[394941057,1764178239971,-310.81254978,0.00017,2]
[394941060,1764178239982,-750.17907092,0.00017,2]
[394941062,1764178239992,-4954.76436267,0.00017,2]
[394941064,1764178240003,-466632.29841102,0.00017,2]
[394941066,1764178240013,-500.0,0.00017521,2]
[394941068,1764178240022,-511.01960502,0.00017521,2]
[394941070,1764178240031,-303.22782121,0.00017521,2]
[394941072,1764178240040,-425.7210451,0.000176,2]
[394941074,1764178240050,-156.68420278,0.000176,2]
[394941076,1764178240059,-403.0,0.000177,5]
[394941078,1764178240068,-1680.0,0.00017796,2]
[394941080,1764178240077,-308.8231561,0.00017819,2]
[394941082,1764178240086,-250.0,0.0001782,2]
[394941084,1764178240095,-501.18885091,0.00017973,2]
[394941086,1764178240104,-158.88942587,0.00017973,2]
[394941088,1764178240113,-370.21811518,0.0001799,2]
[394941090,1764178240122,-110248.34310458,0.00018,2]
[394941108,1764178240290,-6228.20707187,0.00018,2]
[394941111,1764178240309,-1303.70103278,0.00018,2]
[394941113,1764178240321,-2319.19439487,0.00018,2]
[394941116,1764178240332,-29482.09141421,0.00018,2]
[394941457,1764178243637,-343.88582608,0.00016999,2]
[394941459,1764178243648,-500.0,0.00016999,2]
[394941461,1764178243658,-536.90371125,0.00016999,2]
[394941463,1764178243668,-500.0,0.00016999,2]
[394941466,1764178243682,-340.38346267,0.00018,2]
[394941468,1764178243693,-20887.04448238,0.00018,2]
[394941470,1764178243705,-431.38578357,0.00018,2]
[394941472,1764178243716,-21305.2737525,0.00018,2]
[394941474,1764178243727,-9898.5,0.00018,2]
[394941477,1764178243752,-879.0997796,0.00018,2]
[394941480,1764178243763,-580.0,0.00018,2]
[394941482,1764178243775,-1421.97465335,0.00018,2]
[394941605,1764178245100,-820044.41131564,0.00018,2]
[394941607,1764178245110,-922.65913132,0.00018421,2]
[394941609,1764178245120,-2351.0,0.00019551,2]
[394941611,1764178245129,-414.06767032,0.0002,2]
[394941613,1764178245139,-11517.13557372,0.0002,2]
[394941615,1764178245148,-922.65913124,0.00021036,2]
[394941617,1764178245157,-156.68420278,0.0002108,2]
[394941619,1764178245166,-425.72104508,0.0002108,2]
[394941621,1764178245178,-3292.0,0.00021478,2]
[394941623,1764178245188,-2500.91656755,0.00022,4]
[394941625,1764178245198,-4609.0,0.00023596,2]
[394941627,1764178245208,-922.65913124,0.00023652,2]
[394941629,1764178245218,-156.68420278,0.0002456,2]
[394941631,1764178245231,-425.72104508,0.00024561,2]
[394941633,1764178245240,-3303.8204945,0.000249,3]
[394941635,1764178245250,-906.0,0.00025922,2]
[394941637,1764178245260,-922.65913124,0.00026267,2]
[394941639,1764178245270,-156.68420278,0.0002804,2]
[394941641,1764178245279,-425.72104508,0.00028041,2]
[394941643,1764178245289,-922.65913124,0.00028882,2]
[394941645,1764178245298,-579.38721662,0.000306,2]
[394941647,1764178245310,-151.9,0.000306,7]
[394941649,1764178245320,-1270.0,0.000307,2]
[394941651,1764178245331,-922.65913124,0.00031498,2]
[394941653,1764178245348,-156.68420278,0.00031519,15]
[394941655,1764178245358,-425.72104508,0.00031522,2]
[394941657,1764178245368,-579.38721661,0.00031862,2]
[394941659,1764178245378,-579.38721661,0.00033124,2]
[394941661,1764178245388,-1784.0,0.0003393,5]
[394941663,1764178245397,-922.65913124,0.00034113,2]
[394941665,1764178245407,-152.5,0.00034247,2]
[394941667,1764178245417,-579.38721661,0.00034386,2]
[394941669,1764178245428,-1270.0,0.000344,2]
[394941672,1764178245439,-156.68420278,0.00034999,15]
[394941673,1764178245448,-425.72104508,0.00035002,2]
[394941675,1764178245458,-579.38721661,0.00035648,2]
[394941678,1764178245468,-922.65913124,0.00036728,2]
[394941679,1764178245478,-6370.12,0.00036782,2]
[394941681,1764178245487,-579.38721661,0.00036911,2]
[394941683,1764178245496,-150.0,0.00037849,7]
[394941685,1764178245506,-150.0,0.00037849,7]
[394941687,1764178245515,-150.0,0.00037849,7]
[394941689,1764178245525,-150.0,0.00037849,7]
[394941691,1764178245535,-150.0,0.00037849,7]
[394941694,1764178245544,-150.0,0.00037849,7]
[394941695,1764178245553,-150.0,0.00037849,7]
[394941697,1764178245562,-579.38721661,0.00038173,2]
[394941699,1764178245572,-156.68420278,0.00038479,15]
[394941701,1764178245581,-425.72104508,0.00038483,2]
[394941703,1764178245590,-151.0,0.00039341,14]
[394941705,1764178245599,-922.65913124,0.00039344,2]
[394941707,1764178245608,-579.38721661,0.00039435,2]
[394941709,1764178245618,-500.0,0.00039447,5]
[394941712,1764178245627,-150.0,0.00039952,7]
[394941714,1764178245636,-150.0,0.00039952,7]